bitfinex/quotes_ETHUSD_20240928
["timestamp","ask_amount","ask_price","bid_price","bid_amount"]
[1727510970000,0.77532202,2678.3,2678.1,6.73397]
[1727510970494,0.04195681,2678.2,2678.0,3.73402]
[1727510970695,0.04195681,2678.2,2678.1,3.73399]
[1727510970852,0.77532202,2678.3,2678.1,3.73399]
[1727510971048,0.04195681,2678.2,2678.1,3.73399]
[1727510971253,0.04195681,2678.2,2678.0,7.46805]
[1727510971454,0.77532202,2678.3,2678.1,3.73398]
[1727510972095,0.77532202,2678.3,2678.0,3.73402]
[1727510972612,1.57342202,2678.2,2678.0,3.73402]
[1727510972891,1.57342202,2678.2,2677.9,3.0]
[1727510973097,1.57342202,2678.2,2677.6,7.48]
[1727510973098,5.35735208,2678.2,2677.6,3.73468]
[1727510973259,0.77532202,2678.1,2677.5,3.73468]
[1727510973452,0.82532208,2678.0,2677.6,3.73465]
[1727510973695,0.82532208,2678.1,2677.8,3.73435]
[1727510973901,0.04070814,2678.0,2677.8,3.73435]
[1727510974101,0.04070814,2678.0,2677.9,3.73426]
[1727510974508,1.57342202,2678.2,2677.9,3.73426]
[1727510974715,0.04071876,2678.1,2678.0,3.73412]
[1727510977246,0.77532202,2678.4,2678.1,3.73397]
[1727510977400,0.77532202,2678.4,2678.1,7.46788]
[1727510977596,0.0408104,2678.3,2677.9,7.46838]
[1727510977811,0.81613242,2678.3,2678.0,3.73412]
[1727510978226,0.0408104,2678.3,2677.9,3.73419]
[1727510978430,0.81613242,2678.3,2678.0,3.73412]
[1727510978619,0.0408104,2678.3,2678.0,3.73412]
[1727510978914,0.0408104,2678.3,2678.0,3.73409]
[1727510979104,0.81613242,2678.3,2678.0,3.73409]
[1727510979437,0.0408104,2678.3,2678.0,3.73409]
[1727510979848,0.0408104,2678.3,2678.2,3.73385]
[1727510980198,0.77532202,2678.5,2678.2,3.73385]
[1727510980399,0.03949117,2678.4,2678.2,3.73385]
[1727510980646,0.77532202,2678.5,2678.3,3.73366]
[1727510980811,1.59852202,2678.6,2678.2,3.73385]
[1727510981012,1.59852202,2678.6,2678.2,3.73376]
[1727510981225,0.03813769,2678.5,2678.2,3.73376]
[1727510982041,0.03813769,2678.5,2678.3,3.73367]
[1727510982404,0.82532208,2678.7,2678.3,3.73367]
[1727510982609,0.03828218,2678.6,2678.3,3.73367]
[1727510983937,0.03828218,2678.6,2678.4,3.73349]
[1727510984102,0.03828218,2678.6,2677.9,3.7574]
[1727510984103,0.03828218,2678.6,2678.3,6.73364]
[1727510984322,3.40002649,2678.7,2678.3,3.0]
[1727510984531,0.03700081,2678.6,2678.2,3.73374]
[1727510984701,0.03700081,2678.6,2678.2,7.4675]
[1727510984901,0.03700081,2678.6,2678.3,3.73369]
[1727510985748,0.03700081,2678.6,2678.2,3.73374]
[1727510986208,0.8232,2678.3,2678.0,3.73405]
[1727510986655,0.03677064,2678.2,2678.0,3.73405]
[1727510986943,0.8232,2678.3,2678.0,3.73405]
[1727510987151,0.03677064,2678.2,2678.0,3.73405]
[1727510987442,0.8232,2678.3,2678.0,3.73405]
[1727510987741,3.40002649,2678.1,2677.9,3.73424]
[1727510987953,0.0365992,2678.0,2677.9,3.73424]
[1727510990320,0.0365992,2678.0,2677.8,7.46867]
[1727510990471,0.0365992,2678.0,2677.9,3.73426]
[1727510991007,0.0365992,2678.0,2677.8,3.73432]
[1727510991324,0.0365992,2678.0,2677.8,7.46865]
[1727510992505,0.0365992,2678.0,2677.9,3.73426]
[1727510993511,0.81192122,2678.0,2677.9,3.73426]
[1727510993731,1.61672122,2678.0,2677.5,6.7348]
[1727510993918,0.8413992,2678.0,2677.8,3.7344]
[1727510994213,1.61672122,2678.0,2677.8,3.7344]
[1727510994415,0.77532202,2677.9,2677.8,3.7344]
[1727510994708,0.81192122,2678.0,2677.8,3.7344]
[1727510994921,0.03661834,2677.9,2677.8,3.7344]
[1727510995409,0.81194036,2677.9,2677.8,3.7344]
[1727510997299,1.20031485,2677.9,2677.8,3.7344]
[1727510998323,1.58716661,2677.9,2677.8,3.7344]
[1727510999310,1.97213249,2677.9,2677.8,3.7344]
[1727510999638,1.97213249,2677.9,2677.5,3.73473]
[1727510999921,1.93551415,2677.8,2677.6,3.73466]
[1727511000140,1.97182799,2677.7,2677.6,3.73466]
[1727511000342,0.03631384,2677.7,2677.6,3.73466]
[1727511000645,2.33659784,2677.8,2677.6,3.73466]
[1727511001001,0.03631384,2677.7,2677.6,3.73466]
[1727511001201,2.33659784,2677.8,2677.6,3.73466]
[1727511001544,2.37291168,2677.7,2677.6,3.73466]
[1727511002103,0.03631384,2677.7,2677.6,3.73466]
[1727511002322,2.37291168,2677.7,2677.6,3.73466]
[1727511002520,2.37291168,2677.7,2677.6,4.51396]
[1727511002521,2.33981115,2677.7,2677.6,4.51396]
[1727511002735,2.37612499,2677.7,2677.6,4.51396]
[1727511003499,2.3768091,2677.7,2677.6,4.51396]
[1727511005350,0.03631384,2677.7,2677.6,8.338837]
[1727511005701,2.34049526,2677.9,2677.8,3.7344]
[1727511005943,2.7305778,2678.0,2677.9,3.73426]
[1727511006320,2.7305778,2678.1,2677.9,3.73426]
[1727511006521,2.7305778,2678.1,2677.9,3.73417]
[1727511006836,2.7305778,2678.1,2678.0,3.73412]
[1727511007407,0.03650828,2678.1,2677.9,3.73417]
[1727511007621,2.76708608,2678.1,2677.9,3.73417]
[1727511007842,2.76708608,2678.1,2677.9,7.46835]
[1727511008047,0.03650828,2678.1,2678.0,3.73412]
[1727511008813,0.03650828,2678.1,2678.0,6.73412]
[1727511009048,2.34028073,2678.1,2678.0,7.780949]
[1727511009233,0.03524119,2678.1,2678.0,8.532249]
[1727511010364,1.59546027,2678.1,2678.0,8.532249]
[1727511010848,0.03524119,2678.1,2678.0,8.532249]
[1727511011151,1.56021908,2678.2,2678.1,7.48529]
[1727511011452,1.59561519,2678.2,2678.1,8.7119399]
[1727511012213,1.20512691,2678.2,2678.1,8.7119399]
[1727511012652,0.03539611,2678.2,2678.1,8.7119399]
[1727511012854,1.20512691,2678.2,2678.1,8.7119399]
[1727511013152,1.56021908,2678.3,2678.2,3.73385]
[1727511013356,1.56021908,2678.4,2678.3,6.73371]
[1727511013515,1.56021908,2678.4,2678.3,7.48501]
[1727511014642,1.59559628,2678.4,2678.3,7.48501]
[1727511014836,1.59559628,2678.4,2678.3,9.15256239]
[1727511015050,0.0353772,2678.4,2678.3,9.15256239]
[1727511015267,1.20451016,2678.4,2678.3,9.15256239]
[1727511015429,0.0353772,2678.4,2678.3,9.15256239]
[1727511015628,1.20427636,2678.4,2678.3,9.15256239]
[1727511016022,0.0353772,2678.4,2678.3,9.15256239]
[1727511016255,1.20424592,2678.4,2678.3,9.15256239]
[1727511017352,0.0353772,2678.4,2678.3,9.15256239]
[1727511017925,1.20380811,2678.4,2678.3,9.15256239]
[1727511018127,0.0353772,2678.4,2678.3,9.15256239]
[1727511018363,0.0353772,2678.4,2678.3,7.48501]
[1727511018799,1.98299447,2678.4,2678.3,7.48501]
[1727511019078,1.98299447,2678.4,2678.3,3.0]
[1727511019225,0.8307,2678.3,2678.0,3.73405]
[1727511019429,1.94668616,2678.1,2677.5,0.8276]
[1727511019642,0.0358009,2678.2,2678.1,3.73399]
[1727511019865,3.16784073,2678.3,2678.1,3.7339]
[1727511020033,1.94685576,2678.2,2678.1,3.7339]
[1727511020240,2.33714073,2678.4,2678.2,3.73377]
[1727511020442,2.33714073,2678.4,2678.3,3.73371]
[1727511021969,2.33625946,2678.4,2678.3,3.73371]
[1727511022778,0.8307,2678.6,2678.4,3.73357]
[1727511022779,2.33625946,2678.5,2678.4,3.73357]
[1727511023140,3.16695946,2678.6,2678.4,3.73357]
[1727511024490,2.33625946,2678.5,2678.4,3.73357]
[1727511024842,2.33625946,2678.6,2678.4,3.73357]
[1727511025045,2.33625946,2678.6,2678.5,3.73343]
[1727511025740,2.33625946,2678.6,2678.5,4.56103]
[1727511025945,2.33625946,2678.9,2678.7,3.0]
[1727511026180,2.33625946,2679.1,2679.0,3.73273]
[1727511026339,2.33665652,2679.1,2679.0,3.73273]
[1727511027142,3.16735652,2679.2,2679.1,3.73259]
[1727511027341,3.16677956,2679.2,2679.1,3.73259]
[1727511027555,3.16677956,2679.2,2679.0,3.73273]
[1727511027556,3.16677956,2679.2,2679.0,3.73264]
[1727511027783,3.16677956,2679.2,2679.0,3.73266]
[1727511028791,3.16596244,2679.2,2679.0,3.73266]
[1727511030606,5.73528893,2679.3,2679.0,3.73266]
[1727511031307,5.73528893,2679.3,2679.0,3.73263]
[1727511031598,1.94498111,2679.1,2679.0,3.73273]
[1727511032103,5.73528893,2679.3,2679.1,3.73258]
[1727511032469,1.55579126,2679.2,2679.1,3.7325]
[1727511032997,1.94499066,2679.4,2679.3,3.73231]
[1727511033304,3.50082245,2679.4,2679.3,4.51011]
[1727511033487,1.55583179,2679.4,2679.3,4.51011]
[1727511033687,1.55583179,2679.4,2679.2,3.73245]
[1727511033688,5.34501715,2679.5,2679.2,3.73245]
[1727511033941,1.94499066,2679.4,2679.2,3.73245]
[1727511034240,1.94499066,2679.3,2679.2,3.73245]
[1727511034392,5.34501715,2679.3,2679.2,3.73245]
[1727511034734,5.34501715,2679.3,2679.1,3.0]
[1727511034933,1.94499066,2679.2,2679.1,3.0]
[1727511035102,3.40002649,2679.3,2678.8,3.73293]
[1727511035103,3.40002649,2679.3,2678.9,3.73286]
[1727511035305,1.55490977,2679.0,2678.9,3.73286]
[1727511036341,0.8166,2679.0,2678.8,3.73293]
[1727511036497,5.34357005,2678.9,2678.6,6.73325]
[1727511036841,1.55471277,2678.7,2678.6,6.73325]
[1727511037135,1.55471277,2678.8,2678.6,6.73325]
[1727511037289,1.55471277,2678.7,2678.6,6.73325]
[1727511037494,1.55471277,2678.8,2678.6,6.73325]
[1727511037695,1.55471277,2678.7,2678.6,10.46645]
[1727511037927,1.55471277,2678.8,2678.6,6.7332]
[1727511038128,1.16588983,2678.7,2678.6,6.7332]
[1727511038934,1.55471277,2678.7,2678.6,6.7332]
[1727511039143,1.55471277,2678.7,2678.6,3.73329]
[1727511039343,4.95473926,2678.7,2678.6,3.73329]
[1727511039657,5.34357005,2678.7,2678.6,3.73329]
[1727511040413,5.34357005,2678.7,2678.5,3.73342]
[1727511040608,5.34357005,2678.7,2678.3,10.46727]
[1727511040810,1.55479152,2678.5,2678.3,7.4672]
[1727511041053,1.55479152,2678.5,2678.3,3.73358]
[1727511041261,1.55479152,2678.4,2678.3,3.73358]
[1727511041879,1.94354356,2678.4,2678.3,3.73358]
[1727511042655,1.94369869,2678.4,2678.3,3.73358]
[1727511042864,1.94369869,2678.4,2678.2,6.73375]
[1727511043259,1.55497084,2678.3,2678.2,6.73375]
[1727511044068,1.94369869,2678.4,2678.3,3.73371]
[1727511044469,4.18412649,2678.5,2678.3,3.73371]
[1727511046339,4.18412649,2678.5,2678.4,3.73357]
[1727511046742,6.51637877,2678.5,2678.3,7.46734]
[1727511046980,4.18412649,2678.5,2678.3,7.46734]
[1727511047276,1.94434505,2678.4,2678.3,3.73363]
[1727511047477,4.18412649,2678.5,2678.3,7.46726]
[1727511047778,6.51637877,2678.5,2678.3,3.73362]
[1727511048999,4.18412649,2678.5,2678.3,3.73362]
[1727511049301,3.40002649,2678.5,2678.4,3.73357]
[1727511049713,2.33328925,2678.5,2678.4,3.73357]
[1727511050010,2.33328925,2678.7,2678.6,3.73329]
[1727511050162,0.7774,2678.8,2678.6,3.73329]
[1727511050676,2.33389283,2678.7,2678.6,3.73329]
[1727511050872,3.4995708,2678.8,2678.4,8.23293]
[1727511051200,2.33426109,2678.6,2678.5,3.73343]
[1727511052163,2.33426109,2678.7,2678.6,3.73329]
[1727511052400,1.16753022,2678.7,2678.6,7.49929]
[1727511052709,1.94580588,2678.8,2678.7,3.0]
[1727511053289,2.33426109,2679.0,2678.7,6.73315]
[1727511053803,2.33426109,2679.0,2678.6,4.49928]
[1727511053804,2.33426109,2678.9,2678.6,3.73328]
[1727511053961,3.10206109,2678.8,2678.5,3.73335]
[1727511054164,2.33426109,2678.7,2678.5,3.73335]
[1727511054694,2.33426109,2678.7,2678.4,3.73352]
[1727511055007,2.33426109,2678.6,2678.4,3.73352]
[1727511055175,2.33426109,2678.7,2678.5,4.51023]
[1727511055380,2.7221708,2678.9,2678.5,4.51023]
[1727511055381,2.33426109,2678.9,2678.6,3.73329]
[1727511055594,2.33426109,2678.9,2678.7,3.73305]
[1727511055965,2.33426109,2678.8,2678.7,3.73305]
[1727511056174,2.33426109,2678.9,2678.8,3.73301]
[1727511057103,2.33426109,2678.9,2678.7,3.73313]
[1727511058811,2.33597257,2678.9,2678.7,3.73313]
[1727511059112,2.33597257,2678.9,2678.6,3.73329]
[1727511059282,2.33597257,2678.9,2678.7,3.73313]
[1727511059481,2.33597257,2678.8,2678.7,3.73313]
[1727511060367,0.7678,2678.7,2678.4,3.73347]
[1727511060602,1.94692455,2678.5,2678.4,7.467]
[1727511060878,0.7678,2678.7,2678.5,3.73332]
[1727511060879,3.10377257,2678.7,2678.5,3.73332]
[1727511061165,2.33597257,2678.6,2678.5,3.73332]
[1727511061365,0.7678,2678.7,2678.4,3.73348]
[1727511061366,3.10377257,2678.7,2678.4,3.73348]
[1727511061693,3.10377257,2678.7,2678.6,3.73329]
[1727511061897,2.33621283,2678.7,2678.6,3.73329]
[1727511062607,2.33621283,2678.7,2678.4,7.46687]
[1727511062767,2.33621283,2678.7,2678.3,3.7337]
[1727511062967,2.33621283,2678.7,2678.5,3.73343]
[1727511065497,2.33621283,2678.7,2678.6,3.73329]
[1727511065838,2.33621283,2678.7,2678.5,7.46678]
[1727511066034,2.33621283,2678.7,2678.5,3.73335]
[1727511066242,2.33621283,2678.6,2678.5,3.73335]
[1727511066409,2.33621283,2678.7,2678.5,3.73335]
[1727511066939,2.33621283,2678.6,2678.5,3.73335]
[1727511068398,2.33621283,2678.7,2678.5,3.73335]
[1727511069212,2.33621283,2678.7,2678.4,3.73356]
[1727511069445,2.33621283,2678.6,2678.4,3.73356]
[1727511069946,2.33621283,2678.5,2678.4,3.73356]
[1727511070449,3.11291283,2678.5,2678.0,3.73404]
[1727511070606,3.11291283,2678.5,2677.9,0.8276]
[1727511070607,2.33621283,2678.1,2677.9,3.73416]
[1727511071052,2.33682175,2678.0,2677.9,3.73416]
[1727511071202,2.33682175,2678.1,2677.9,3.73416]
[1727511071410,2.33682175,2678.0,2677.9,3.73416]
[1727511072151,2.33682175,2678.1,2677.9,3.73416]
[1727511073203,2.33682175,2678.1,2677.8,3.73429]
[1727511073204,2.33682175,2678.1,2677.8,7.46861]
[1727511073402,2.33682175,2678.1,2677.8,3.73429]
[1727511074307,3.40002649,2678.0,2677.7,0.8276]
[1727511074623,1.94613411,2677.8,2677.7,4.56214]
[1727511074820,1.94613411,2677.8,2677.7,3.73454]
[1727511075139,1.94618149,2677.8,2677.5,4.51622]
[1727511075323,1.94585121,2677.7,2677.6,6.7346]
[1727511075521,1.94585121,2677.7,2677.6,3.0]
[1727511075869,2.33499816,2677.7,2677.2,3.73516]
[1727511076197,5.34557768,2677.4,2677.2,3.73516]
[1727511076307,1.94555119,2677.3,2677.0,3.73544]
[1727511076672,3.40002649,2677.4,2677.0,7.47088]
[1727511076673,5.34557768,2677.2,2677.0,7.47088]
[1727511076948,1.94555119,2677.1,2676.9,3.73558]
[1727511077153,1.55469717,2677.0,2676.9,3.73558]
[1727511078290,1.55469717,2677.0,2676.8,3.73573]
[1727511078420,1.16546475,2676.9,2676.8,3.73573]
[1727511079022,1.16551641,2676.9,2676.8,3.73573]
[1727511079724,1.55469717,2676.9,2676.8,3.73573]
[1727511080242,1.55469717,2677.0,2676.8,3.73573]
[1727511080439,1.16460597,2676.9,2676.8,3.73573]
[1727511080642,1.16474608,2676.9,2676.8,3.73573]
[1727511080974,1.55469717,2676.9,2676.8,3.73573]
[1727511081179,1.55469717,2677.0,2676.9,3.73566]
[1727511081358,1.16426714,2677.0,2676.9,3.73566]
[1727511081839,1.16434575,2677.0,2676.9,3.73566]
[1727511082659,1.16434575,2677.0,2676.8,8.25293]
[1727511082874,0.77599155,2676.9,2676.8,4.5172]
[1727511083185,0.83460566,2676.9,2676.8,4.5172]
[1727511084053,0.05861411,2676.9,2676.8,8.342513]
[1727511084579,1.16434575,2677.2,2677.1,3.73538]
[1727511084941,0.77577068,2677.2,2677.1,3.73538]
[1727511085144,1.16434575,2677.3,2677.1,3.73538]
[1727511085343,0.7756612,2677.2,2677.1,3.73538]
[1727511085570,1.16434575,2677.3,2677.1,3.73538]
[1727511086387,4.95472366,2677.2,2676.9,3.73565]
[1727511086586,1.16326762,2677.1,2676.8,4.51729]
[1727511086757,0.77547708,2676.9,2676.8,4.51729]
[1727511087084,0.77547708,2676.9,2676.8,3.73579]
[1727511087286,0.83422463,2676.9,2676.7,3.73585]
[1727511088497,0.83422463,2676.9,2676.8,3.7358]
[1727511089059,0.05874755,2676.9,2676.8,3.7358]
[1727511090962,0.77547708,2677.1,2677.0,3.73552]
[1727511092207,0.77547708,2677.2,2677.0,7.47104]
[1727511092416,0.77547708,2677.2,2677.0,3.73552]
[1727511092697,0.77547708,2677.1,2677.0,3.73552]
[1727511094522,0.83206874,2677.1,2676.8,3.73572]
[1727511094806,0.77456435,2677.0,2676.8,3.73572]
[1727511095165,0.05647936,2676.9,2676.8,3.73572]
[1727511095566,0.77456435,2677.1,2676.8,3.73572]
[1727511095765,0.05650225,2676.9,2676.8,3.73572]
[1727511096001,0.77456435,2677.1,2676.8,3.73572]
[1727511096178,0.05650225,2676.9,2676.8,3.73572]
[1727511096366,0.77456435,2677.0,2676.8,3.73572]
[1727511096572,0.05644028,2676.9,2676.8,3.73572]
[1727511097706,0.77456435,2677.1,2676.8,3.73572]
[1727511097914,0.05649643,2677.0,2676.8,3.73572]
[1727511098872,0.05649643,2677.0,2676.9,3.73566]
[1727511099313,0.05649643,2677.0,2676.6,3.736]
[1727511099696,0.05649643,2677.0,2676.9,3.73566]
[1727511100203,0.05649643,2677.0,2676.9,4.54476]
[1727511100503,0.77456435,2677.3,2676.9,3.73566]
[1727511100712,0.83115087,2677.2,2676.9,3.73566]
[1727511101219,0.77456435,2677.1,2676.9,3.73566]
[1727511101376,0.05653038,2677.1,2676.9,3.73556]
[1727511101576,0.83109473,2677.1,2676.9,3.73556]
[1727511102019,0.05653038,2677.1,2676.9,3.73556]
[1727511102934,0.05653038,2677.1,2677.0,3.73552]
[1727511103796,0.77456435,2677.2,2677.1,3.73538]
[1727511104344,0.82913077,2677.2,2677.1,3.73538]
[1727511106040,0.05456642,2677.2,2676.9,3.73556]
[1727511106205,0.77558577,2677.1,2677.0,3.7355]
[1727511106400,0.05455605,2677.1,2677.0,3.7355]
[1727511107218,0.83014182,2677.1,2677.0,3.7355]
[1727511108540,0.05455605,2677.1,2677.0,3.7355]
[1727511108746,0.83053169,2677.1,2677.0,3.7355]
[1727511108927,0.83052776,2677.1,2677.0,3.7355]
[1727511109247,0.83077823,2677.1,2677.0,3.7355]
[1727511110014,0.83077823,2677.1,2677.0,4.5326]
[1727511110215,0.05455605,2677.1,2677.0,8.36688654]
[1727511110834,0.05455605,2677.1,2677.0,7.5326]
[1727511111140,0.83077823,2677.1,2677.0,7.5326]
[1727511113142,1.21782367,2677.1,2677.0,7.5326]
[1727511113349,1.21782367,2677.1,2677.0,6.7355]
[1727511113646,1.60925322,2677.1,2677.0,6.7355]
[1727511114225,0.05455605,2677.1,2677.0,6.7355]
[1727511115223,1.99757316,2677.1,2677.0,6.7355]
[1727511116150,0.05455605,2677.1,2677.0,6.7355]
[1727511116351,0.05455605,2677.1,2677.0,3.7355]
[1727511116508,2.33162053,2677.2,2677.0,3.7355]
[1727511116708,0.05485345,2677.1,2677.0,3.7355]
[1727511116935,2.33162053,2677.3,2677.0,3.7355]
[1727511117135,2.39144513,2677.2,2677.1,3.73537]
[1727511117517,0.05490959,2677.2,2677.1,4.52767]
[1727511117724,1.94781625,2677.2,2677.1,4.52767]
[1727511117953,2.00270295,2677.2,2677.1,4.52767]
[1727511118159,2.00270295,2677.2,2677.1,5.353988]
[1727511118543,2.00270295,2677.2,2677.1,8.4286894]
[1727511118742,2.00270295,2677.2,2677.1,8.353988]
[1727511118743,0.83436459,2677.2,2677.1,8.353988]
[1727511119115,0.0548867,2677.2,2677.1,8.353988]
[1727511119360,0.77947789,2677.2,2677.1,8.353988]
[1727511119513,0.77947789,2677.3,2677.2,3.73524]
[1727511119866,0.77947789,2677.4,2677.3,7.5674]
[1727511120009,0.77947789,2677.4,2677.3,7.64208839]
[1727511120212,0.83446508,2677.4,2677.3,9.14038575]
[1727511120413,0.83488201,2677.4,2677.3,9.06569736]
[1727511120660,0.05498719,2677.4,2677.3,9.06569736]
[1727511121223,0.83474998,2677.4,2677.3,9.06569736]
[1727511123466,0.05498719,2677.4,2677.3,9.06569736]
[1727511123949,0.83474998,2677.4,2677.3,9.06569736]
[1727511124262,0.05498719,2677.4,2677.3,9.06569736]
[1727511127345,0.77976279,2677.6,2677.5,6.73482]
[1727511130702,1.55878415,2677.8,2677.6,6.73459]
[1727511131727,1.55878415,2677.7,2677.6,3.0]
[1727511132456,5.34628462,2677.8,2677.6,3.0]
[1727511132653,1.55557633,2677.7,2677.6,3.0]
[1727511132893,5.34628462,2677.8,2677.3,6.73501]
[1727511133210,4.48567,2677.9,2677.3,6.73501]
[1727511133211,1.16662983,2677.4,2677.3,3.73501]
[1727511133494,2.69676837,2677.5,2677.3,3.7351]
[1727511133789,1.94536837,2677.4,2677.3,3.7351]
[1727511133997,1.55541435,2677.4,2677.3,3.7351]
[1727511134157,1.55544124,2677.4,2677.3,3.7351]
[1727511134357,0.05527302,2677.4,2677.3,3.7351]
[1727511134572,1.61079097,2677.4,2677.3,3.7351]
[1727511134892,2.00064139,2677.4,2677.3,3.7351]
[1727511135270,0.05527302,2677.4,2677.3,3.7351]
[1727511135919,2.00064139,2677.4,2677.3,3.7351]
[1727511136126,5.40155764,2677.4,2677.1,3.73537]
[1727511136288,1.5552489,2677.2,2677.1,3.73537]
[1727511136820,0.05506991,2677.2,2677.1,3.73537]
[1727511136985,1.61050851,2677.2,2677.1,3.73537]
[1727511137327,1.5554386,2677.2,2677.1,3.73537]
[1727511137494,1.61048562,2677.2,2677.1,3.73537]
[1727511138509,0.05504702,2677.2,2677.1,3.73537]
[1727511138703,1.94439619,2677.2,2677.1,3.73537]
[1727511139083,1.99954146,2677.2,2677.1,3.73537]
[1727511142426,1.22078191,2676.4,2676.3,3.7364]
[1727511142800,1.22079726,2676.4,2676.3,3.7364]
[1727511143208,0.05459414,2676.4,2676.3,3.7364]
[1727511143402,1.22068021,2676.4,2676.3,3.7364]
[1727511144012,2.04228021,2676.4,2676.3,3.7364]
[1727511144229,2.4312995,2676.4,2676.3,3.7364]
[1727511145450,0.87619414,2676.4,2676.3,3.7364]
[1727511145798,0.87619414,2676.4,2676.2,3.73663]
[1727511145994,1.55510536,2676.3,2676.2,3.73663]
[1727511146402,1.60910692,2676.3,2676.2,3.73663]
[1727511146826,0.05400156,2676.3,2676.2,3.73663]
[1727511147026,1.60910692,2676.3,2676.2,3.73663]
[1727511147223,1.21908232,2676.3,2676.2,3.73663]
[1727511148539,0.83059829,2676.3,2676.2,3.73663]
[1727511148743,0.05400156,2676.3,2676.2,3.73663]
[1727511149132,0.83060439,2676.3,2676.2,3.73663]
[1727511149450,0.05400156,2676.3,2676.2,6.73663]
[1727511151949,0.77660283,2676.5,2676.4,3.73636]
[1727511155031,1.16508076,2676.6,2676.4,3.73636]
[1727511155231,0.77608301,2676.5,2676.4,3.73636]
[1727511155435,0.8279951,2676.5,2676.4,3.73636]
[1727511156059,0.05191209,2676.5,2676.4,3.73636]
[1727511156235,0.82760009,2676.5,2676.4,3.73636]
[1727511157528,0.05191209,2676.5,2676.4,3.73636]
[1727511157965,0.8274902,2676.5,2676.4,3.73636]
[1727511158142,0.82750143,2676.5,2676.4,3.73636]
[1727511158342,0.82742152,2676.5,2676.4,3.73636]
[1727511160366,0.05191209,2676.5,2676.4,3.73636]
[1727511161976,0.82742152,2676.5,2676.4,3.73636]
[1727511162145,0.05191209,2676.5,2676.4,3.73636]
[1727511163447,0.82742152,2676.5,2676.4,3.73636]
[1727511163645,0.05191209,2676.5,2676.4,3.73636]
[1727511163874,0.82742152,2676.5,2676.4,3.73636]
[1727511164179,0.05191209,2676.5,2676.4,3.73636]
[1727511164533,0.82742152,2676.5,2676.4,3.73636]
[1727511164734,0.05191209,2676.5,2676.4,3.73636]
[1727511164934,0.82742152,2676.5,2676.4,3.73636]
[1727511165560,0.05191209,2676.5,2676.4,3.73636]
[1727511166490,0.82742152,2676.5,2676.4,3.73636]
[1727511168397,0.82742152,2676.5,2676.3,3.7365]
[1727511168551,1.21699285,2676.5,2676.4,3.73636]
[1727511171355,1.21699285,2676.5,2676.4,8.534845]
[1727511171356,0.82808807,2676.5,2676.4,8.534845]
[1727511171554,0.05191209,2676.5,2676.4,8.534845]
[1727511173200,0.77617598,2676.7,2676.6,3.73608]
[1727511173496,1.16508076,2676.7,2676.4,7.48749]
[1727511173800,1.1649976,2676.6,2676.5,3.73622]
[1727511173960,1.55510536,2676.6,2676.5,3.73622]
[1727511174160,2.38700536,2676.6,2676.3,3.73642]
[1727511174368,1.5537574,2676.5,2676.4,3.73636]
[1727511174683,2.77177378,2676.6,2676.4,3.73636]
[1727511174996,1.93987378,2676.5,2676.4,3.73636]
[1727511175162,2.77177378,2676.6,2676.4,3.73636]
[1727511175361,3.51115499,2676.5,2676.2,3.73653]
[1727511175604,3.51115499,2676.5,2676.2,6.73653]
[1727511175605,1.5542747,2676.3,2676.2,6.73653]
[1727511176304,0.05002277,2676.3,2676.2,6.73653]
[1727511176981,1.60494032,2676.3,2676.2,6.73653]
[1727511177186,1.99286614,2676.3,2676.2,6.73653]
[1727511178107,1.99286614,2676.3,2676.2,3.73653]
[1727511178312,0.8319,2676.2,2676.1,3.73677]
[1727511178493,2.77687713,2676.2,2676.1,3.73677]
[1727511178697,2.8267979,2676.2,2676.1,3.73677]
[1727511179321,0.88182077,2676.2,2676.1,3.73677]
[1727511180173,0.88182077,2676.2,2676.0,3.0]
[1727511180370,1.94589371,2676.1,2676.0,3.0]
[1727511180621,1.99580411,2676.1,2676.0,6.73684]
[1727511181135,0.8818104,2676.1,2676.0,3.73692]
[1727511181284,0.8818104,2676.1,2675.7,0.8238]
[1727511181285,3.21693718,2676.1,2675.9,3.73692]
[1727511181482,3.21693718,2676.1,2676.0,6.73692]
[1727511181726,0.8818104,2676.1,2676.0,6.73692]
[1727511182440,3.21693718,2676.1,2676.0,6.73692]
[1727511182595,0.8818104,2676.1,2676.0,3.0]
[1727511182803,3.21693718,2676.1,2676.0,3.0]
[1727511183121,3.21693718,2676.1,2676.0,6.73692]
[1727511183287,3.21792249,2676.1,2676.0,6.73692]
[1727511183879,0.0499104,2676.1,2676.0,6.73692]
[1727511184095,2.38602249,2676.1,2676.0,6.73692]
[1727511184937,0.0499104,2676.1,2676.0,7.784304]
[1727511185100,1.60783453,2676.1,2676.0,8.608104]
[1727511185422,0.0499104,2676.1,2676.0,8.608104]
[1727511185594,0.82921212,2676.1,2676.0,8.608104]
[1727511185795,0.77930172,2676.1,2676.0,8.608104]
[1727511185996,1.16850936,2676.2,2676.1,3.73678]
[1727511186198,1.55792413,2676.4,2676.1,7.9712684]
[1727511186199,1.16850936,2676.3,2676.1,7.9712684]
[1727511186399,0.77947637,2676.2,2676.1,7.9712684]
[1727511186584,1.16850936,2676.3,2676.2,6.73664]
[1727511186785,1.16850936,2676.4,2676.2,8.73123084]
[1727511187000,1.16921598,2676.4,2676.3,6.7365]
[1727511187333,1.16921598,2676.4,2676.3,8.48039892]
[1727511187493,1.55792413,2676.5,2676.4,6.73636]
[1727511188634,1.60509046,2676.5,2676.4,6.73636]
[1727511189290,0.04716633,2676.5,2676.4,6.73636]
[1727511189490,1.60509046,2676.5,2676.4,6.73636]
[1727511189825,1.60509046,2676.5,2676.4,8.04041589]
[1727511189990,0.04716633,2676.5,2676.4,8.04041589]
[1727511190331,1.60509046,2676.5,2676.4,8.03041589]
[1727511190489,0.04716633,2676.5,2676.4,8.03041589]
[1727511190692,1.60509046,2676.5,2676.4,8.03041589]
[1727511194032,0.04716633,2676.5,2676.4,6.71636]
[1727511194226,3.14631747,2676.7,2676.6,3.73608]
[1727511195004,3.14631747,2676.7,2676.3,3.73642]
[1727511195216,2.33696314,2676.5,2676.4,3.73636]
[1727511195394,3.40412744,2676.6,2676.4,3.73636]
[1727511195587,3.40412744,2676.6,2676.2,3.73663]
[1727511195836,2.33690305,2676.4,2676.2,3.73655]
[1727511196130,2.33690305,2676.4,2676.3,3.7365]
[1727511196497,2.38395578,2676.4,2676.3,3.7365]